[Event "Icelandic Chess-ch 2023"]
[Site "Hafnarfjordur"]
[Date "2023.05.25"]
[Round "11.4"]
[White "Ragnarsson, Dagur"]
[Black "Ingvason, Johann"]
[Result "1-0"]
[ECO "D45"]
[WhiteElo "2346"]
[BlackElo "2076"]
[Annotator "TA"]
[PlyCount "143"]
[EventDate "2023.05.13"]
[EventType "tourn"]
[EventCountry "ISL"]
[SourceTitle "playchess.com"]
[Source "ChessBase"]
[SourceQuality "1"]
[TimeControl "40/5400+30:1800+30"]

{[%evp 21,143,13,8,-19,24,13,17,-7,-2,-7,45,43,46,23,47,37,63,56,85,65,82,68,66,60,72,77,73,16,24,23,79,19,15,17,21,-61,-52,-58,-44,-95,-104,-99,-93,-108,0,0,0,0,0,0,8,0,218,197,231,227,227,197,280,280,284,284,284,280,293,302,299,217,200,202,268,268,268,259,256,232,302,288,298,298,322,318,320,307,313,298,265,245,268,262,254,228,333,316,353,281,352,347,352,352,352,352,352,352,352,345,345,345,339,338,311,286,450,445,604,571,817,781,772,769,758,747,725,718]} 1. c4 {[%emt 0:00:05]} Nf6 {[%emt 0:12:59]} 2. Nf3 {[%emt 0:00:25]} c6 {[%emt 0:00:20]} 3. d4 {[%emt 0:00:08]} d5 {[%emt 0:00:04]} 4. Nc3 {[%emt 0:00:07]} e6 {[%emt 0:00:05]} 5. e3 {[%emt 0:00:31]} Nbd7 {[%emt 0:00:08]} 6. Qc2 {[%emt 0:00:19]} Bd6 {[%emt 0:00:07]} 7. Be2 {[%emt 0:00:17]} O-O {[%emt 0:00:07]} 8. O-O {[%emt 0:00:04]} b6 {[%emt 0:02:20]} 9. e4 {[%emt 0:01:55]} dxe4 {[%emt 0:00:46]} 10. Nxe4 {[%emt 0:00:28]} Nxe4 {[%emt 0:00:48]} 11. Qxe4 {[%emt 0:00:08]} Bb7 {[%emt 0:01:10]} 12. Bg5 {[%emt 0:05:00] D45: Semi-Slav: 5 e3.} Be7 {[%emt 0:25:42] [#]} 13. Bd3 $1 {[%emt 0:06:53][%csl Gd3][%cal Re4h7]} g6 {[%emt 0:00:05]} 14. Bh6 {[%emt 0:01:06] The position is equal.} (14. Bxe7 {simplifies} Qxe7 15. Rad1 Rab8 16. Qe2) 14... Re8 {[%emt 0:05:22]} 15. Rad1 {[%emt 0:01:20] [#]} (15. Rae1 {is interesting.} Qc7 16. Ng5 Bf6 17. Re2) 15... Bf8 $146 {[%emt 0:04:05]} (15... Qc7 $11) ({Predecessor:} 15... Qc7 16. Ne5 Nxe5 17. dxe5 c5 18. Qe3 Rad8 19. Be4 Ba6 20. Bd3 Rd4 21. b3 Red8 {½-½ Ramirez,C (2273)-Hernandez Fernandez,N (1902) Pan American-ch Seniors 50 2017 (1)}) 16. Bxf8 $14 {[%emt 0:19:52]} Rxf8 {[%emt 0:01:03]} 17. Qf4 {[%emt 0:00:45]} Rc8 {[%emt 0:01:49] [#]} 18. c5 $1 {[%emt 0:12:32]} Qf6 {[%emt 0:01:35]} (18... a5 19. Qh6) 19. Qe3 {[%emt 0:01:14]} Rfd8 {[%emt 0:02:17]} 20. b4 {[%emt 0:00:56]} a5 {[%emt 0:10:40]} 21. a3 {[%emt 0:18:16]} axb4 {[%emt 0:00:13]} 22. axb4 {[%emt 0:00:05]} Ra8 {[%emt 0:00:17]} 23. Be4 {[%emt 0:03:28]} Qe7 {[%emt 0:09:44]} 24. Nd2 {[%emt 0:03:10] White is more active.} (24. Ra1 $16) 24... Nf6 $11 {[%emt 0:02:02]} 25. Bf3 {[%emt 0:02:17]} Nd5 {[%emt 0:02:16]} (25... bxc5 $11 26. dxc5 Ba6) 26. Qb3 {[%emt 0:02:37]} (26. Bxd5 $16 cxd5 27. Rb1 (27. cxb6 Ba6 $15)) 26... Ba6 {[%emt 0:01:10]} 27. Rfe1 {[%emt 0:00:10]} Bb5 {[%emt 0:01:07] aiming for ...Ba4.} 28. Ra1 {[%emt 0:01:06] Prevents Ba4.} (28. Bxd5 $11 cxd5 29. Ra1) 28... Rxa1 $15 {[%emt 0:00:27]} 29. Rxa1 {[%emt 0:00:04]} bxc5 {[%emt 0:00:14]} (29... Qf6 $5 {[%cal Rf6d4]} 30. Rd1 Qxd4 $15) 30. bxc5 {[%emt 0:00:31] [#]} (30. dxc5 $15 Qf6 31. Re1) 30... Qf6 $1 $17 {[%emt 0:00:21]} 31. Ne4 {[%emt 0:04:48]} Qxd4 {[%emt 0:00:56]} 32. Rd1 {[%emt 0:00:04] [#]} Qg7 {[%emt 0:01:27]} (32... Ba4 $1 $17 33. Rxd4 Bxb3) 33. Nd6 $11 {[%emt 0:02:53]} Nc3 {[%emt 0:07:00]} 34. Rc1 $36 {[%emt 0:00:45][%mdl 2048] White has the initiative.} Ne2+ {[%emt 0:00:26]} 35. Bxe2 {[%emt 0:00:06]} Bxe2 {[%emt 0:00:01]} 36. Qb6 {[%emt 0:03:04][%csl LRc6,LRd8]} Ra8 {[%emt 0:01:52] Black is on the road to losing.} (36... Rf8 $11) 37. Qxc6 $18 {[%emt 0:03:58]} Qa1 {[%emt 0:01:43][%cal Ra1c1]} 38. Qe8+ $1 {[%emt 0:00:05]} Rxe8 {[%emt 0:04:46][%cal Ra1c1]} 39. Rxa1 {[%emt 0:00:13][%mdl 4096] Endgame KRB-KRN} Re7 {[%emt 0:00:02]} (39... Rd8 $142 40. f4 Bd3) 40. c6 {[%emt 0:03:31]} h5 {[%emt 0:00:54]} 41. Ra8+ {[%emt 0:34:23]} Kh7 {[%emt 0:02:21]} 42. Ne8 {[%emt 0:00:00]} g5 {[%emt 0:16:22]} 43. c7 {[%emt 0:00:00]} Ba6 {[%emt 0:00:08]} 44. c8=Q {[%emt 0:00:00]} ({Weaker is} 44. Rxa6 Rxe8 45. Rc6 Rc8 $14) ({But not} 44. c8=R Bxc8 45. Rxc8 Kg6 $18) 44... Bxc8 {[%emt 0:00:05]} 45. Rxc8 {[%emt 0:00:00] KRN-KR} Kg6 {[%emt 0:00:02]} 46. g3 {[%emt 0:00:00]} Rd7 {[%emt 0:00:18]} 47. Kg2 {[%emt 0:00:00]} Rd2 {[%emt 0:00:39]} 48. Rc6 {[%emt 0:00:00]} Rd5 {[%emt 0:00:47]} 49. Nd6 {[%emt 0:00:00]} Rd4 {[%emt 0:00:23]} 50. Nc4 {[%emt 0:00:00]} Rd5 {[%emt 0:00:14]} 51. h3 {[%emt 0:00:00]} Kf6 {[%emt 0:00:27]} 52. Ne3 {[%emt 0:00:00]} Ra5 {[%emt 0:00:17]} 53. Rc7 {[%emt 0:00:00]} Rb5 {[%emt 0:00:20]} 54. Kf3 {[%emt 0:00:00]} Ra5 {[%emt 0:00:34]} 55. Nc4 {[%emt 0:00:00]} Rd5 {[%emt 0:02:20]} 56. Ke2 {[%emt 0:00:00] f4 is the strong threat.} Rd4 {[%emt 0:00:22]} (56... Kg6 {keeps fighting.} 57. f3 f6) 57. Nd2 {[%emt 0:00:00]} Ra4 {[%emt 0:01:35]} 58. Rc4 {[%emt 0:00:00]} Ra5 {[%emt 0:01:14]} 59. h4 {[%emt 0:00:00]} gxh4 {[%emt 0:00:19]} 60. Rxh4 {[%emt 0:00:00]} Kg6 {[%emt 0:00:11]} 61. Nf3 {[%emt 0:00:00]} Ra2+ {[%emt 0:02:20]} 62. Kf1 {[%emt 0:00:00]} Ra5 {[%emt 0:00:10]} 63. Kg2 {[%emt 0:00:00]} Rb5 {[%emt 0:00:13]} 64. Rc4 {[%emt 0:00:00]} Ra5 {[%emt 0:00:27]} 65. Nh4+ {[%emt 0:00:00]} Kg7 {[%emt 0:00:15]} 66. f4 {[%emt 0:00:00]} Kf6 {[%emt 0:00:30]} (66... Ra2+ $142 67. Kh3 Rb2) 67. Nf3 {[%emt 0:00:00] Black must now prevent Rc7. White is clearly winning.} Kf5 {[%emt 0:01:10]} 68. Kh3 {[%emt 0:00:00]} Ra1 {[%emt 0:05:48]} 69. Rc5+ {[%emt 0:00:00]} Ke4 {[%emt 0:00:12]} 70. Ng5+ {[%emt 0:00:00]} Kd4 {[%emt 0:00:58]} 71. Rc7 {[%emt 0:00:00]} h4 {[%emt 0:01:48]} 72. Kxh4 {[%emt 0:00:00] Weighted Error Value: White=0.17 (very precise) /Black=0.27 (precise)} 1-0

[Event "Icelandic Chess-ch 2023"]
[Site "Hafnarfjordur"]
[Date "2023.05.25"]
[Round "11.5"]
[White "Kjartansson, Gudmundur"]
[Black "Thorfinnsson, Bragi"]
[Result "1-0"]
[ECO "E10"]
[WhiteElo "2402"]
[BlackElo "2431"]
[Annotator "TA"]
[PlyCount "83"]
[EventDate "2023.05.13"]
[EventType "tourn"]
[EventCountry "ISL"]
[SourceTitle "playchess.com"]
[Source "ChessBase"]
[SourceQuality "1"]
[TimeControl "40/5400+30:1800+30"]

{[%evp 9,83,0,15,3,45,40,58,61,72,76,77,61,77,34,368,168,329,175,172,164,164,88,464,437,407,171,170,159,157,151,159,0,0,0,0,0,0,5,5,0,6,7,6,0,0,0,0,0,0,0,0,0,27,16,12,16,120,96,107,125,298,257,1025,998,808,0,37,0,833,801,1184,1044,857,1065,929,810]} 1. d4 {[%emt 0:00:03]} Nf6 {[%emt 0:07:13]} 2. c4 {[%emt 0:00:09]} e6 {[%emt 0:01:51]} 3. Nf3 {[%emt 0:00:13]} c5 {[%emt 0:04:58]} 4. d5 {[%emt 0:00:10]} b5 {[%emt 0:00:13]} 5. e4 {[%emt 0:00:22]} Nxe4 {[%emt 0:08:49]} 6. Bd3 {[%emt 0:00:10] E10: Blumenfeld Gambit.} Nd6 {[%emt 0:04:17]} 7. cxb5 {[%emt 0:01:35]} Bb7 {[%emt 0:13:09]} 8. Nc3 $1 {[%emt 0:10:26] White is slightly better.} Be7 {[%emt 0:09:39]} 9. O-O {[%emt 0:01:50]} O-O {[%emt 0:05:38] [#]} 10. Bf4 $146 {[%emt 0:02:37]} ({Predecessor:} 10. Re1 h6 11. Bb1 a6 12. b6 Qxb6 13. Qd3 f5 14. dxe6 Be4 15. Nxe4 fxe4 16. Rxe4 Nxe4 17. Qxe4 Qxe6 {1-0 Trent,L (2399)-Rensch,D (2402) I'M Not A GM Speed Chess blitz 2021 (1.10)}) 10... a6 $1 {[%emt 0:05:35]} 11. Qc2 {[%emt 0:24:33] White has more active pieces.} (11. a4 $5 {[%cal Rd1b3]}) 11... exd5 $2 {[%emt 0:14:06][%mdl 8192]} (11... h6 $14) 12. Bxh7+ $18 {[%emt 0:10:22]} Kh8 {[%emt 0:00:04]} 13. Rad1 {[%emt 0:10:25]} (13. Rfe1 $142) 13... d4 {[%emt 0:00:48] [#]} 14. Nxd4 {[%emt 0:03:53][%mdl 512]} cxd4 {[%emt 0:01:23] [#]} 15. Rd3 {[%emt 0:01:05]} (15. Rxd4 $1 $18 {[%cal Od4d3] Hoping for Rd3!} Nxb5 (15... axb5 16. Qd3) 16. Rd3) 15... Bg5 $2 {[%emt 0:04:13][%mdl 8192] [#]} (15... Kxh7 $2 16. Rh3+ Kg8 17. Qh7#) (15... g6 $16 16. Rh3 Kg7) 16. Rh3 $1 {[%emt 0:10:58] Intending Bg8+ and mate.} Bh6 {[%emt 0:00:18]} 17. Rxh6 {[%emt 0:11:54]} (17. Bxh6 $142 gxh6 18. Ne4 Bxe4 19. Bxe4 Nxe4 20. Qxe4) 17... gxh6 {[%emt 0:01:11]} 18. Be5+ {[%emt 0:00:12] A strong pair of Bishops.} f6 {[%emt 0:00:17]} 19. Bxd6 {[%emt 0:00:02][%cal Oc2g6]} dxc3 {[%emt 0:06:00]} 20. Qg6 {[%emt 0:01:27]} ({White must play} 20. Be4 $1 $16 {[%cal Re4b7]} Bxe4 21. Qxe4) 20... Rg8 $1 $11 {[%emt 0:00:32]} 21. Bxg8 {[%emt 0:00:48]} (21. Qxg8+ $2 {loses.} Qxg8 22. Bxg8 Kxg8 $19) 21... Qxg8 {[%emt 0:00:07]} 22. Qxh6+ {[%emt 0:00:25]} (22. Qxf6+ Qg7 23. Qxc3 Qxc3 24. bxc3 axb5 $17) 22... Qh7 {[%emt 0:00:03]} 23. Qf8+ {[%emt 0:02:09]} Qg8 {[%emt 0:00:08] aiming for ...Qxf8.} 24. Qh6+ {[%emt 0:00:22]} (24. bxc3 $2 {perishes.} Qxf8 25. Bxf8 axb5 $19) 24... Qh7 {[%emt 0:00:04]} 25. Qxf6+ {[%emt 0:00:03]} Qg7 {[%emt 0:00:08]} 26. Qxg7+ {[%emt 0:05:34]} (26. Qxc3 {simplifies} Qxc3 27. bxc3 axb5 28. Rb1) 26... Kxg7 {[%emt 0:00:07]} 27. b6 {[%emt 0:00:22]} ({Of course not} 27. Be5+ Kf7 $15) 27... cxb2 {[%emt 0:02:24]} 28. Rb1 {[%emt 0:00:02]} Nc6 {[%emt 0:00:16]} 29. Rxb2 {[%emt 0:00:04]} Re8 {[%emt 0:00:31][%cal Re8e1]} 30. f3 {[%emt 0:01:05]} Re1+ {[%emt 0:03:46]} 31. Kf2 {[%emt 0:00:01]} Rd1 {[%emt 0:00:06]} 32. Bf4 {[%emt 0:00:06]} Rd5 {[%emt 0:02:53]} (32... d5 $11) 33. Rd2 $1 $16 {[%emt 0:01:49]} Nb4 {[%emt 0:01:03] ...Nd3+ would be deadly.} 34. Rxd5 {[%emt 0:00:20]} Bxd5 {[%emt 0:01:23]} (34... Nxd5 $16 35. Be3 Kg8) 35. a3 $18 {[%emt 0:00:38]} Nd3+ {[%emt 0:00:41]} (35... Nc6 36. b7 Kf6) 36. Ke3 {[%emt 0:00:26]} Ne1 {[%emt 0:00:20]} 37. Kf2 $2 {[%emt 0:00:58]} (37. Ke2 $1 $18 {[%cal Re2e1]} Nxg2 38. Bg3) 37... Nd3+ $14 {[%emt 0:01:05]} 38. Ke3 $2 {[%emt 0:00:00][%mdl 8192]} (38. Kg3 $14) 38... Ne1 $18 {[%emt 0:00:11] [#]} 39. Ke2 $1 {[%emt 0:01:49] White is clearly winning.} Nc2 {[%emt 0:00:48] [#]} 40. Be5+ $1 {[%emt 0:00:21]} Kf7 {[%emt 0:00:31]} 41. Bb2 {[%emt 0:02:09]} Ke6 {[%emt 0:11:29]} 42. Kd2 {[%emt 0:00:16] Excellently played by Kjartansson!   Weighted Error Value: White=0.43/Black=0.52} 1-0

[Event "Icelandic Chess-ch 2023"]
[Site "Hafnarfjordur"]
[Date "2023.05.25"]
[Round "11.6"]
[White "Danielsen, Henrik"]
[Black "Domalchuk-Jonasson, Aleksandr"]
[Result "1/2-1/2"]
[ECO "D00"]
[WhiteElo "2501"]
[BlackElo "2338"]
[Annotator "TA"]
[PlyCount "166"]
[EventDate "2023.05.13"]
[EventType "tourn"]
[EventCountry "ISL"]
[SourceTitle "playchess.com"]
[Source "ChessBase"]
[SourceQuality "1"]
[TimeControl "40/5400+30:1800+30"]

{[%evp 9,166,-21,0,-18,-18,-18,-20,-18,-19,-25,-7,-10,-2,-14,-25,-12,2,10,8,0,0,0,0,0,0,0,0,0,0,0,0,-8,0,-19,0,-17,0,0,0,0,0,0,0,0,0,0,0,-17,-12,-31,-19,-41,-40,-41,-12,-12,-12,-19,-19,-19,0,-19,0,-44,-15,-62,-62,-58,-25,-83,0,-57,-40,-53,-35,-40,-8,-59,-62,-62,-48,-59,-49,-59,-28,-17,-24,-125,-141,-151,-157,-242,-240,-230,-222,-244,-191,-188,-173,-608,-526,-541,-541,-527,-527,-522,-502,-441,-242,-552,-547,-703,-674,-681,-479,-648,-638,-594,0,0,0,0,0,0,0,0,0,0,0,0,0,0,0,0,0,0,0,0,0,0,0,0,0,0,0,0,0,0,0,0,0,0,0,0,0,0,0,0,0]} 1. d4 {[%emt 0:00:02]} Nf6 {[%emt 0:00:47]} 2. Nc3 {[%emt 0:00:54]} d5 {[%emt 0:00:25]} 3. Bf4 {[%emt 0:00:11]} e6 {[%emt 0:00:05]} 4. a3 {[%emt 0:00:25]} Bd6 {[%emt 0:13:50]} 5. e3 {[%emt 0:00:48]} O-O {[%emt 0:00:24]} 6. Nf3 {[%emt 0:00:09] D00: 1 d4 d5: Unusual lines.} Bxf4 {[%emt 0:08:20]} 7. exf4 {[%emt 0:00:11]} b6 {[%emt 0:01:26]} 8. Bd3 {[%emt 0:02:59]} c5 {[%emt 0:00:31]} 9. O-O {[%emt 0:00:39] [#]} Ba6 $146 {[%emt 0:09:22]} ({Predecessor:} 9... Nc6 10. Re1 Bb7 11. Bb5 Ne7 12. Ne5 Nf5 13. Ne2 Nd6 {1-0 Niemann,H (2592)-Kravtsiv,M (2660) Lindores Abbey Blitz Tal Memorial 2021 (17.17)}) 10. Re1 {[%emt 0:03:16]} Bxd3 {[%emt 0:06:28]} 11. Qxd3 {[%emt 0:00:03]} Nc6 {[%emt 0:00:50]} 12. Rad1 {[%emt 0:01:07]} cxd4 {[%emt 0:06:59]} 13. Nb5 {[%emt 0:00:43][%cal Of4f5]} Ne4 {[%emt 0:03:14]} 14. Nbxd4 {[%emt 0:01:58]} Nxd4 {[%emt 0:00:23]} 15. Nxd4 {[%emt 0:00:49]} Qf6 {[%emt 0:05:30]} 16. Qf3 {[%emt 0:11:42][%cal Oc2c4]} Rac8 {[%emt 0:09:39]} 17. c3 {[%emt 0:01:43]} g6 {[%emt 0:03:02]} 18. Qg4 {[%emt 0:03:51]} h5 {[%emt 0:02:18]} 19. Qf3 {[%emt 0:00:25]} Kg7 {[%emt 0:02:28]} 20. h3 {[%emt 0:02:49]} Rh8 {[%emt 0:03:46]} 21. Re2 {[%emt 0:03:45]} Rc4 {[%emt 0:01:43]} 22. Rde1 {[%emt 0:01:46]} a6 {[%emt 0:04:33]} 23. g3 {[%emt 0:01:49]} b5 {[%emt 0:00:52]} 24. Kg2 {[%emt 0:00:29]} Rcc8 {[%emt 0:04:04]} 25. Qd3 {[%emt 0:03:51]} Rhe8 {[%emt 0:01:20]} 26. Nf3 {[%emt 0:03:09]} Rc7 {[%emt 0:01:34]} 27. Qe3 {[%emt 0:00:48]} Rb8 {[%emt 0:01:14]} 28. g4 {[%emt 0:03:18]} Rh8 {[%emt 0:01:44]} 29. g5 {[%emt 0:03:48]} Qe7 {[%emt 0:00:07]} 30. Nd4 {[%emt 0:01:32][%cal Bf3d4,Bd4e2,Be2g3][%mdl 32]} Kh7 {[%emt 0:01:34]} 31. h4 {[%emt 0:03:19][%cal Of4f5]} Qd6 {[%emt 0:03:29]} 32. f3 {[%emt 0:06:56]} Nc5 {[%emt 0:00:02]} 33. Qd2 {[%emt 0:00:15]} Rf8 {[%emt 0:02:00]} 34. Re5 {[%emt 0:01:05]} Qd7 {[%emt 0:02:45]} 35. Ne2 {[%emt 0:03:03][%cal Of4f5]} (35. f5 $5 exf5 36. Ne2 $11) 35... Qd6 {[%emt 0:00:36]} (35... Nb3 $5 {[%cal Rb3d2]} 36. Qd1 Na5 $15) 36. Ng3 {[%emt 0:01:47][%cal Of4f5]} Nd7 {[%emt 0:00:23]} 37. R5e2 {[%emt 0:02:35]} (37. Ne4 $1 $11 Qc6 38. Nf6+ Nxf6 39. gxf6) 37... Rc4 $15 {[%emt 0:00:31]} 38. Re4 $1 {[%emt 0:02:48]} Nc5 {[%emt 0:00:32]} 39. Re5 {[%emt 0:00:25]} (39. Rxc4 $11 {keeps the balance.} bxc4 40. Ne4) 39... Nd7 {[%emt 0:00:19]} 40. R5e4 {[%emt 0:00:47]} Qc6 {[%emt 0:00:47]} 41. Rd4 {[%emt 0:34:38][%cal Of4f5]} Rxd4 {[%emt 0:04:44]} 42. Qxd4 {[%emt 0:00:00]} Kg8 {[%emt 0:03:16]} 43. Rd1 {[%emt 0:00:00]} (43. Ne2 $11) 43... Nb6 {[%emt 0:01:25]} 44. Re1 {[%emt 0:00:00]} Qc7 {[%emt 0:04:01]} 45. Qf6 {[%emt 0:00:00][%cal Oe1e6]} Nd7 {[%emt 0:01:50]} 46. Qe7 {[%emt 0:00:00][%cal Oe1e6]} Qd8 {[%emt 0:01:46]} 47. Qd6 {[%emt 0:00:00]} Nb8 {[%emt 0:00:36]} 48. Rxe6 {[%emt 0:00:00]} fxe6 $17 {[%emt 0:00:27]} 49. Qxe6+ {[%emt 0:00:00]} Kg7 {[%emt 0:04:27]} (49... Kh7 50. Nxh5 Nd7 51. Qd6 $17) 50. f5 {[%emt 0:00:00]} (50. Qe5+ $17 {is a better defense.} Kh7 51. f5) 50... Qe8 $19 {[%emt 0:00:29] ...Qxe6 would be deadly.} 51. Qxd5 {[%emt 0:00:00] [#]} Qf7 $1 {[%emt 0:09:39]} 52. Qe5+ {[%emt 0:01:57]} Kh7 {[%emt 0:00:27]} 53. Nxh5 {[%emt 0:01:58] Hoping for Nf6+.} Nd7 {[%emt 0:01:07] Repels Nf6+} 54. fxg6+ $2 {[%emt 0:05:43]} (54. Qd6 Qxf5 55. Nf6+ Nxf6 56. Qxf8 Qc2+ 57. Kh3) 54... Qxg6 {[%emt 0:00:17]} 55. Qd4 {[%emt 0:00:18]} Qxh5 {[%emt 0:00:47]} 56. Qxd7+ {[%emt 0:00:06]} Rf7 {[%emt 0:00:10]} 57. Qd5 {[%emt 0:01:43]} Qg6 {[%emt 0:00:03]} 58. Kg3 {[%emt 0:01:05]} Rf5 {[%emt 0:00:22]} (58... Qf5 $142 59. Qc6 Qf4+ 60. Kg2 Qd2+ 61. Kg3 Qf4+ 62. Kg2 Kh8) 59. Qd4 {[%emt 0:01:26] [#]} (59. Qe4 {was the crucial defense.}) 59... Qe6 $1 {[%emt 0:00:24]} 60. Qg4 {[%emt 0:05:17]} Qd6+ {[%emt 0:01:50]} 61. f4 {[%emt 0:00:55]} Rd5 {[%emt 0:00:53] And now ...Rd3+ would win.} 62. Qc8 {[%emt 0:00:25]} (62. Qh5+ Kg7 63. Qe2 Rd2) 62... Qe7 {[%emt 0:01:00] ( -> ...Qe3+)} 63. h5 {[%emt 0:03:24]} Qe3+ $2 {[%emt 0:00:10]} (63... Rd3+ $19 64. Kg4 Qe2+ {[%mdl 64] Skewer, Double Attack} 65. Kf5 Qxh5 66. Qc7+ Kh8 67. Qe5+ Kg8 68. Qb8+ Kg7 69. Qe5+ Kf8 70. Qb8+ Qe8 71. Qxe8+ Kxe8) 64. Kg4 $11 {[%emt 0:00:21] The position is equal.} Qe2+ {[%emt 0:00:16]} 65. Kh4 {[%emt 0:00:09]} Qh2+ {[%emt 0:00:47]} (65... Qxb2 66. g6+ (66. Qxa6 Qh2+ 67. Kg4 Qg2+ 68. Kh4 Qh2+ 69. Kg4 Qg2+ 70. Kh4 Qh2+ $15) 66... Kg7 67. Qc7+ (67. Qxa6 Qh2+ 68. Kg4 Qxh5+ 69. Kg3 Rd3+ 70. Kf2 Qf3+ 71. Kg1 Rd1+ 72. Kh2 Rh1#) (67. Qxa6 Qh2+ 68. Kg4 Qxh5+ 69. Kg3 Rd3+ 70. Kf2 Qf3+ 71. Kg1 Rd1+ 72. Kh2 Rh1#)) 66. Kg4 {[%emt 0:00:12]} Qg2+ {[%emt 0:00:02]} (66... Qxb2 67. g6+ (67. Qxa6 Qg2+ 68. Kh4 Qf2+ 69. Kg4 Qg2+ 70. Kh4 Qh1+ 71. Kg4 Qg2+ $15) 67... Kg7 68. Qc7+ (68. Qxa6 Qe2+ 69. Kh4 Qxh5+ 70. Kg3 Rd3+ 71. Kf2 Qf3+ 72. Kg1 Rd1+ 73. Kh2 Rh1#) (68. Qxa6 Qe2+ 69. Kh4 Qxh5+ 70. Kg3 Rd3+ 71. Kf2 Qf3+ 72. Kg1 Rd1+ 73. Kh2 Rh1#)) 67. Kh4 {[%emt 0:00:08] Some like it hot} Qf2+ {[%emt 0:00:01]} (67... Qxb2 68. g6+ (68. Qxa6 Qh2+ 69. Kg4 Qg2+ 70. Kh4 Qf2+ 71. Kg4 Qg2+ 72. Kh4 Qf2+ 73. Kg4 Qe2+ 74. Kh4 Qe7 $17) 68... Kg7 69. Qc7+ (69. Qxa6 Qh2+ 70. Kg4 Qxh5+ 71. Kg3 Rd3+ 72. Kf2 Qf3+ 73. Kg1 Rd1+ 74. Kh2 Rh1#) (69. Qxa6 Qh2+ 70. Kg4 Qxh5+ 71. Kg3 Rd3+ 72. Kf2 Qf3+ 73. Kg1 Rd1+ 74. Kh2 Rh1#)) 68. Kg4 {[%emt 0:00:07]} Qg1+ {[%emt 0:00:01]} (68... Qxb2 69. g6+ (69. Qxa6 Qg2+ 70. Kh4 Qf2+ 71. Kg4 Qg1+ 72. Kh4 Qe1+ 73. Kg4 Qe2+ 74. Kh4 Qe7 $15) 69... Kg7 70. Qc7+ (70. Qxa6 Qe2+ 71. Kh4 Qxh5+ 72. Kg3 Rd3+ 73. Kf2 Qf3+ 74. Kg1 Rd1+ 75. Kh2 Rh1#) (70. Qxa6 Qe2+ 71. Kh4 Qxh5+ 72. Kg3 Rd3+ 73. Kf2 Qf3+ 74. Kg1 Rd1+ 75. Kh2 Rh1#)) 69. Kh4 {[%emt 0:00:12]} Qh2+ {[%emt 0:00:02]} 70. Kg4 {[%emt 0:00:07]} Qg1+ {[%emt 0:00:03]} (70... Qxb2 {gets mated.} 71. g6+ (71. Qxa6 Qe2+ 72. Kh4 Qe7 $15) 71... Kg7 72. Qc7+ (72. Qxa6 Qe2+ 73. Kh4 Qxh5+ 74. Kg3 Rd3+ 75. Kf2 Qf3+ 76. Kg1 Rd1+ 77. Kh2 Rh1#) (72. Qxa6 Qe2+ 73. Kh4 Qxh5+ 74. Kg3 Rd3+ 75. Kf2 Qf3+ 76. Kg1 Rd1+ 77. Kh2 Rh1#)) 71. Kh4 {[%emt 0:00:07]} Qe1+ {[%emt 0:00:21]} 72. Kg4 {[%emt 0:00:08]} Qe2+ {[%emt 0:02:03]} 73. Kh4 {[%emt 0:00:09]} Qe7 {[%emt 0:00:03]} (73... Qxb2 {is a self mate.} 74. g6+ (74. Qxa6 Qf2+ 75. Kg4 Qg2+ 76. Kh4 Qh2+ 77. Kg4 Qe2+ 78. Kh4 Qh2+ 79. Kg4 Qg2+ 80. Kh4 Qf2+ 81. Kg4 Qg2+ $17) 74... Kg7 75. Qc7+ (75. Qxa6 Qh2+ 76. Kg4 Qxh5+ 77. Kg3 Rd3+ 78. Kf2 Qf3+ 79. Kg1 Rd1+ 80. Kh2 Rh1#) (75. Qxa6 Qh2+ 76. Kg4 Qxh5+ 77. Kg3 Rd3+ 78. Kf2 Qf3+ 79. Kg1 Rd1+ 80. Kh2 Rh1#)) 74. Qxa6 {[%emt 0:02:37]} Rd6 {[%emt 0:03:02]} 75. Qxb5 {[%emt 0:00:46]} Qe4 {[%emt 0:00:33]} 76. Kg4 {[%emt 0:04:56]} Qg2+ {[%emt 0:00:32]} 77. Kh4 {[%emt 0:00:11]} Qh2+ {[%emt 0:00:01]} 78. Kg4 {[%emt 0:00:14] White wants to mate with g6+.} Qg2+ {[%emt 0:00:02]} 79. Kh4 {[%emt 0:00:10] aiming for Qf5+.} Qh1+ {[%emt 0:01:10]} 80. Kg4 {[%emt 0:00:13] White threatens g6+ and mate.} Qd1+ {[%emt 0:00:04]} 81. Kh4 {[%emt 0:00:10] Threatens to win with g6+.} Qe1+ {[%emt 0:01:05]} 82. Kg4 {[%emt 0:00:09] g6+ would kill now.} Qd1+ {[%emt 0:00:02]} 83. Kh4 {[%emt 0:00:08] Strongly threatening g6+.} Qe1+ {[%emt 0:00:27] White happily takes the draw. An interesting game.   Weighted Error Value: White=0.33/Black=0.14 (very precise)} 1/2-1/2